bitfinex/quotes_SOLUSD_20230120
["timestamp","ask_amount","ask_price","bid_price","bid_amount"]
[1674253509838,29.62,25.327,25.315,21.756667]
[1674253510390,29.57,25.365,25.315,21.756667]
[1674253510568,29.57,25.365,25.316,2.52341]
[1674253510904,59.79505283,25.364,25.316,2.52341]
[1674253511093,29.58,25.363,25.316,2.52341]
[1674253511305,118.4,25.362,25.317,0.96]
[1674253511626,118.4,25.36,25.318,0.96]
[1674253511832,118.4,25.358,25.318,3.48321]
[1674253512064,29.58,25.357,25.318,3.48321]
[1674253512274,142.15576951,25.357,25.319,2.52311]
[1674253512585,93.13082234,25.356,25.32,0.96]
[1674253512788,104.1957584,25.356,25.32,0.96]
[1674253513002,117.51347789,25.355,25.319,2.52311]
[1674253513314,118.4,25.353,25.315,21.756667]
[1674253513524,118.4,25.351,25.315,21.756667]
[1674253513727,118.4,25.349,25.315,21.756667]
[1674253513933,118.4,25.347,25.315,21.756667]
[1674253514156,118.4,25.345,25.315,21.756667]
[1674253514474,118.4,25.343,25.315,21.756667]
[1674253514688,118.4,25.341,25.315,21.756667]
[1674253514877,118.4,25.339,25.315,21.756667]
[1674253515088,185.97,25.338,25.315,21.756667]
[1674253515298,253.15215567,25.338,25.315,21.756667]
[1674253515531,118.4,25.336,25.315,21.756667]
[1674253515864,118.4,25.334,25.315,21.756667]
[1674253516178,118.4,25.332,25.28,66.80367113]
[1674253516397,118.4,25.33,25.278,66.18618453]
[1674253516699,211.44638616,25.329,25.278,66.18618453]
[1674253516901,17.96,25.328,25.278,66.18618453]
[1674253517121,49.62,25.327,25.279,66.35608201]
[1674253517315,17.96,25.326,25.275,66.63228437]
[1674253517528,118.4,25.324,25.275,66.63228437]
[1674253517855,67.58,25.323,25.279,66.35608201]
[1674253518067,136.34815567,25.323,25.276,66.50049745]
[1674253518279,68.76815567,25.322,25.277,88.22114245]
[1674253518474,50.59,25.321,25.277,88.22114245]
[1674253518690,192.50197858,25.321,25.277,88.22114245]
[1674253519011,175.46515013,25.32,25.277,21.756667]
[1674253519328,175.46515013,25.32,25.258,21.756667]
[1674253519329,118.4,25.294,25.258,21.756667]
[1674253519519,47.62,25.293,25.258,21.756667]
[1674253519733,20.0,25.292,25.258,21.756667]
[1674253519959,29.66,25.291,25.258,21.756667]
[1674253520151,66.7634229,25.291,25.258,21.756667]
[1674253520364,127.43265522,25.291,25.258,21.756667]
[1674253520569,29.63,25.318,25.258,21.756667]
[1674253520570,161.32376746,25.29,25.258,21.756667]
[1674253520785,50.69873689,25.29,25.259,4.6861]
[1674253521014,50.69873689,25.29,25.26,2.529]
[1674253521203,31.04183216,25.3,25.26,2.529]
[1674253521408,39.18849883,25.289,25.26,2.529]
[1674253521622,39.18849883,25.289,25.259,20.0]
[1674253521828,54.77978355,25.288,25.258,21.756667]
[1674253522061,54.77978355,25.288,25.259,2.5291]
[1674253522259,39.18849883,25.287,25.259,2.5291]
[1674253522470,54.77978355,25.288,25.259,2.5291]
[1674253522672,54.77978355,25.286,25.259,2.5291]
[1674253522887,29.65,25.296,25.259,2.5291]
[1674253522888,39.18849883,25.291,25.259,2.5291]
[1674253523111,17.0,25.29,25.259,2.5291]
[1674253523326,39.18849883,25.285,25.259,2.5291]
[1674253523635,46.67,25.284,25.259,2.5291]
[1674253523835,0.96,25.283,25.258,21.756667]
[1674253524050,148.07,25.282,25.258,21.756667]
[1674253524256,17.96,25.281,25.258,21.756667]
[1674253524464,58.10183216,25.281,25.258,21.756667]
[1674253524678,94.60528238,25.28,25.258,21.756667]
[1674253524878,17.96,25.279,25.258,21.756667]
[1674253525220,92.66921973,25.279,25.258,21.756667]
[1674253525423,75.66921973,25.279,25.258,21.756667]
[1674253525742,17.0,25.278,25.258,21.756667]
[1674253525945,60.2316015,25.279,25.258,21.756667]
[1674253526144,29.64,25.306,25.258,21.756667]
[1674253526145,36.47583199,25.277,25.258,21.756667]
[1674253526354,50.95345022,25.285,25.259,2.5291]
[1674253526559,50.95345022,25.285,25.26,2.67]
[1674253526790,50.95345022,25.285,25.261,2.5289]
[1674253527000,50.95345022,25.285,25.262,0.96]
[1674253527229,32.17598466,25.291,25.259,37.0]
[1674253527230,32.17598466,25.29,25.263,2.5287]
[1674253527420,32.17598466,25.284,25.258,21.756667]
[1674253527631,148.07,25.283,25.258,21.756667]
[1674253527846,171.82576951,25.283,25.258,21.756667]
[1674253528061,118.4,25.281,25.258,21.756667]
[1674253528272,185.07,25.28,25.258,21.756667]
[1674253528477,0.96,25.279,25.258,21.756667]
[1674253528803,118.4,25.277,25.258,21.756667]
[1674253529017,29.68,25.278,25.207,2.527]
[1674253529018,21.756667,25.256,25.207,2.527]
[1674253529225,49.7,25.255,25.207,2.527]
[1674253529443,73.45576951,25.255,25.207,2.527]
[1674253529746,38.99405133,25.254,25.207,2.527]
[1674253530075,29.68,25.275,25.207,2.527]
[1674253530383,118.4,25.252,25.2,10200.263787]
[1674253530599,118.4,25.25,25.2,10200.263787]
[1674253530807,140.156667,25.238,25.201,1.66630754]
[1674253531000,53.46576951,25.249,25.219,20.756667]
[1674253531333,47.51153902,25.237,25.219,20.756667]
[1674253531518,50.69,25.236,25.219,8.256667]
[1674253531725,135.52796221,25.236,25.219,8.256667]
[1674253531941,37.377718,25.235,25.219,8.256667]
[1674253532150,0.96,25.234,25.219,8.256667]
[1674253532379,23.75576951,25.234,25.219,8.256667]
[1674253532574,118.4,25.268,25.219,8.256667]
[1674253532904,85.88989595,25.233,25.219,8.256667]
[1674253533102,48.51217795,25.233,25.219,8.256667]
[1674253533310,48.51217795,25.232,25.219,8.256667]
[1674253533516,86.36012328,25.232,25.219,8.256667]
[1674253533731,23.75576951,25.232,25.219,8.256667]
[1674253533953,44.95711128,25.242,25.22,2.53301]
[1674253534166,119.2512,25.272,25.22,2.53301]
[1674253534363,35.37746,25.252,25.22,2.53301]
[1674253534570,59.13322951,25.252,25.22,2.53301]
[1674253534779,23.75576951,25.251,25.22,2.53301]
[1674253534993,85.03103794,25.251,25.22,22.53301]
[1674253535207,90.66437127,25.25,25.22,22.53301]
[1674253535414,114.42014078,25.25,25.22,2.53301]
[1674253535638,40.77133333,25.249,25.221,0.96]
[1674253535840,38.59967336,25.249,25.222,2.53281]
[1674253536049,23.75576951,25.249,25.222,2.53281]
[1674253536259,48.33557754,25.26,25.222,2.53281]
[1674253536481,38.59967336,25.257,25.222,2.53281]
[1674253536675,29.7,25.256,25.222,2.53281]
[1674253537007,142.15576951,25.256,25.219,8.256667]
[1674253537207,92.05544287,25.255,25.219,8.256667]
[1674253537406,137.93902082,25.255,25.219,8.256667]
[1674253537618,108.23902082,25.254,25.219,8.256667]
[1674253537846,49.71,25.253,25.219,8.256667]
[1674253538048,112.70677621,25.253,25.219,8.256667]
[1674253538265,118.4,25.251,25.219,8.256667]
[1674253538485,118.4,25.249,25.219,8.256667]
[1674253538671,118.4,25.247,25.219,8.256667]
[1674253538882,49.71,25.246,25.219,8.256667]
[1674253539104,138.59035416,25.246,25.219,8.256667]
[1674253539436,62.99677621,25.245,25.219,8.256667]
[1674253539738,29.72,25.244,25.219,8.256667]
[1674253539951,39.2410067,25.255,25.22,22.53301]
[1674253540145,53.45576951,25.254,25.22,20.0]
[1674253540349,53.45576951,25.254,25.219,8.256667]
[1674253540565,62.99677621,25.253,25.219,8.256667]
[1674253540895,89.70677621,25.252,25.219,8.256667]
[1674253541107,118.4,25.251,25.219,8.256667]
[1674253541302,118.4,25.249,25.219,8.256667]
[1674253541512,118.4,25.247,25.219,8.256667]
[1674253541731,118.4,25.245,25.219,8.256667]
[1674253541940,49.72,25.244,25.219,8.256667]
[1674253542143,168.12,25.244,25.219,8.256667]
[1674253542350,17.0,25.243,25.219,8.256667]
[1674253542564,168.12,25.242,25.219,8.256667]
[1674253542779,17.0,25.241,25.219,8.256667]
[1674253542986,17.0,25.241,25.219,3.256667]
[1674253542987,118.4,25.239,25.219,3.256667]
[1674253543203,118.4,25.237,25.219,3.256667]
[1674253543401,49.72,25.238,25.219,3.256667]
[1674253543402,118.4,25.235,25.219,3.256667]
[1674253543607,118.4,25.233,25.184,1.66743235]
[1674253543822,3.256667,25.219,25.184,1.66743235]
[1674253544134,118.4,25.231,25.184,1.66743235]
[1674253544135,149.11,25.218,25.184,1.66743235]
[1674253544341,118.4,25.216,25.184,1.66743235]
[1674253544565,20.0,25.217,25.184,1.66743235]
[1674253544566,118.4,25.214,25.184,1.66743235]
[1674253544779,20.96,25.215,25.184,1.66743235]
[1674253544780,0.96,25.213,25.184,1.66743235]
[1674253544981,108.74248882,25.215,25.184,1.66743235]
[1674253545195,107.78248882,25.212,25.184,1.66743235]
[1674253545617,113.41582216,25.211,25.184,1.66743235]
[1674253545945,53.59691128,25.21,25.184,1.66743235]
[1674253546133,179.27907202,25.21,25.184,1.66743235]
[1674253546343,118.4,25.208,25.184,1.66743235]
[1674253546561,118.4,25.206,25.2,10199.763787]
[1674253546768,37.96,25.205,25.2,10199.763787]
[1674253547092,228.34973869,25.205,25.2,10199.763787]
[1674253547302,118.4,25.203,25.2,9615.27925703]
[1674253547513,118.4,25.201,25.2,9548.8292998]
[1674253547729,168.17,25.201,25.2,9419.99902494]
[1674253547943,316.62804975,25.201,25.2,9306.91332701]
[1674253548153,319.14493975,25.201,25.2,9112.14489584]
[1674253548471,319.14493975,25.201,25.2,9066.48172395]
[1674253548786,220.67797723,25.201,25.2,9066.48172395]
[1674253548976,214.66374674,25.201,25.2,9055.48172395]
[1674253549411,190.90797723,25.201,25.2,9055.48172395]
[1674253549942,128.94434072,25.201,25.2,9055.48172395]
[1674253550157,183.51279972,25.201,25.2,8601.49335341]
[1674253550369,266.23063674,25.201,25.2,8436.83691841]
[1674253550582,266.23063674,25.201,25.2,8312.36890491]
[1674253550891,266.23063674,25.201,25.2,7837.67505356]
[1674253550892,380.82955054,25.201,25.2,7837.67505356]
[1674253551107,380.82955054,25.201,25.2,7116.23505356]
[1674253551295,380.82955054,25.201,25.2,6784.6442315]
[1674253551500,263.23290653,25.201,25.2,6698.98647338]
[1674253551725,260.71601653,25.201,25.2,6698.98647338]
[1674253551936,88.79024702,25.201,25.2,6698.98647338]
[1674253552154,230.94601653,25.201,25.2,6698.98647338]
[1674253552557,34.568459,25.201,25.2,6698.98647338]
[1674253552881,163.78115398,25.201,25.2,6687.98647338]
[1674253553114,140.02538447,25.201,25.2,6687.98647338]
[1674253553287,140.02538447,25.201,25.181,21.756667]
[1674253553498,163.78115398,25.201,25.181,21.756667]
[1674253553724,61.37286978,25.199,25.181,21.756667]
[1674253553950,29.77,25.198,25.181,21.756667]
[1674253554128,118.4,25.197,25.181,21.756667]
[1674253554342,118.4,25.195,25.181,21.756667]
[1674253554558,49.77,25.196,25.181,21.756667]
[1674253554559,78.1558739,25.196,25.181,21.756667]
[1674253554773,58.1558739,25.196,25.181,21.756667]
[1674253554969,58.1558739,25.195,25.181,21.756667]
[1674253555178,20.0,25.194,25.181,21.756667]
[1674253555400,54.91182357,25.198,25.181,21.756667]
[1674253555612,29.75,25.215,25.181,21.756667]
[1674253555821,29.73,25.229,25.181,21.756667]
[1674253556144,23.75576951,25.223,25.182,39.53683]
[1674253556355,118.4,25.214,25.182,111.6698]
[1674253556667,118.4,25.212,25.182,111.6698]
[1674253556877,118.4,25.212,25.181,21.756667]
[1674253556878,118.4,25.21,25.181,21.756667]
[1674253557072,118.4,25.208,25.181,21.756667]
[1674253557283,118.4,25.206,25.181,21.756667]
[1674253557504,118.4,25.204,25.181,21.756667]
[1674253557720,118.4,25.202,25.181,21.756667]
[1674253557913,173.05971729,25.235,25.181,21.756667]
[1674253558124,27.10169166,25.245,25.181,21.756667]
[1674253558125,23.75576951,25.207,25.182,111.6698]
[1674253558754,142.15576951,25.207,25.182,111.6698]
[1674253558973,148.14,25.227,25.182,111.6698]
[1674253559282,118.4,25.212,25.182,111.6698]
[1674253559513,29.75,25.211,25.182,111.6698]
[1674253559694,29.75,25.219,25.182,111.6698]
[1674253559905,118.4,25.21,25.182,111.6698]
[1674253560145,29.75,25.219,25.182,111.6698]
[1674253560354,23.75576951,25.215,25.182,111.6698]
[1674253560579,29.75,25.214,25.182,111.6698]
[1674253560794,23.75576951,25.224,25.182,111.6698]
[1674253561099,113.7122,25.236,25.182,111.6698]
[1674253561100,118.4,25.213,25.182,111.6698]
[1674253561319,29.73,25.23,25.182,111.6698]
[1674253561524,23.75576951,25.214,25.182,111.6698]
[1674253561740,29.75,25.213,25.182,111.6698]
[1674253561930,118.4,25.212,25.182,111.6698]
[1674253562141,118.4,25.21,25.182,111.6698]
[1674253562350,118.4,25.208,25.182,111.6698]
[1674253562691,171.73440859,25.229,25.182,111.6698]
[1674253562877,23.75576951,25.209,25.183,2.53673]
[1674253563086,118.4,25.208,25.182,111.6698]
[1674253563521,118.4,25.206,25.182,111.6698]
[1674253563731,29.74,25.226,25.182,111.6698]
[1674253563938,23.75576951,25.211,25.182,111.6698]
[1674253564160,138.4,25.21,25.183,17.96]
[1674253564362,138.4,25.21,25.182,111.6698]
[1674253564686,118.4,25.208,25.182,111.6698]
[1674253564890,53.51576951,25.209,25.182,111.6698]
[1674253564891,118.4,25.206,25.182,111.6698]
[1674253565109,23.75576951,25.207,25.182,111.6698]
[1674253565292,23.75576951,25.205,25.182,111.6698]
[1674253565735,29.74,25.225,25.182,111.6698]
[1674253565935,23.75576951,25.206,25.182,111.6698]
[1674253566253,233.7122,25.236,25.182,111.6698]
[1674253566254,23.75576951,25.229,25.183,22.53673]
[1674253566446,29.73,25.235,25.184,2.53663]
[1674253566660,120.0,25.236,25.184,11.63563]
[1674253566870,21.756667,25.245,25.185,15.6826913]
[1674253567100,21.756667,25.245,25.187,2.53633]
[1674253567299,21.756667,25.245,25.188,10.058]
[1674253567512,21.756667,25.245,25.19,2.53603]
[1674253567720,21.756667,25.245,25.191,9.097]
[1674253567934,21.756667,25.245,25.193,2.53573]
[1674253568260,21.756667,25.245,25.194,52.97483398]
[1674253568453,21.756667,25.245,25.196,2.53542]
[1674253568659,6.7e-05,25.245,25.197,10.055]
[1674253568868,6.7e-05,25.245,25.199,2.53512]
[1674253569084,6.7e-05,25.245,25.2,10.054]
[1674253569291,6.7e-05,25.245,25.202,120.93482]
[1674253569603,6.7e-05,25.245,25.201,37.0]
[1674253569604,6.7e-05,25.245,25.204,2.53462]
[1674253569812,6.7e-05,25.245,25.205,9.161]
[1674253570021,6.7e-05,25.245,25.206,39.53442]
[1674253570232,6.7e-05,25.245,25.207,130.09532]
[1674253570441,6.7e-05,25.245,25.208,39.53422]
[1674253570668,6.7e-05,25.245,25.209,11.69412]
[1674253570880,21.756667,25.302,25.209,11.69412]
[1674253570881,5.666785,25.252,25.21,39.53402]
[1674253571106,120.0,25.285,25.212,2.53382]
[1674253571298,120.0,25.285,25.213,126.599]
[1674253571507,42.768053,25.29,25.215,120.93351]
[1674253571735,42.768053,25.29,25.217,120.93331]
[1674253571940,42.768053,25.29,25.219,120.93311]
[1674253572153,42.768053,25.29,25.221,120.93291]
[1674253572365,42.768053,25.29,25.22,46.156]
[1674253572366,41.268053,25.29,25.223,120.93271]
[1674253572581,41.268053,25.29,25.225,120.93251]
[1674253572774,41.268053,25.29,25.227,120.93231]
[1674253572986,41.268053,25.29,25.229,120.93211]
[1674253573205,41.268053,25.29,25.231,120.93191]
[1674253573404,41.268053,25.29,25.233,120.93171]
[1674253573614,35.273353,25.29,25.235,120.93151]
[1674253573847,35.273353,25.29,25.237,120.93131]
[1674253574033,35.273353,25.29,25.239,120.93111]
[1674253574246,35.273353,25.29,25.241,120.9309]
[1674253574456,35.273353,25.29,25.243,120.9307]
[1674253574665,35.273353,25.29,25.245,120.9305]
[1674253574896,24.273353,25.29,25.247,120.9303]
[1674253575085,24.273353,25.29,25.249,120.9301]
[1674253575295,24.273353,25.29,25.251,120.9299]
[1674253575530,23.773353,25.29,25.253,118.4]
[1674253575722,23.773353,25.29,25.254,29.9546]
[1674253575931,23.773353,25.29,25.255,3.4895]
[1674253576144,23.773353,25.29,25.256,128.3534]
[1674253576352,43.268053,25.328,25.29,23.773353]
[1674253576571,29.62,25.327,25.291,3.4859]
[1674253576767,29.62,25.327,25.292,2.5258]
[1674253577398,29.62,25.327,25.254,7.427]
[1674253577611,20.0,25.326,25.256,2.5294]
[1674253577820,29.62,25.325,25.258,14.7226913]
[1674253578149,23.75576951,25.325,25.26,2.529]
[1674253578341,43.268053,25.328,25.26,2.529]
[1674253578342,171.77576951,25.324,25.26,2.529]
[1674253578554,2.51689,25.323,25.26,2.529]
[1674253578764,29.62,25.322,25.261,127.8010913]
[1674253578990,29.62,25.322,25.262,2.5288]
[1674253578991,0.96,25.321,25.262,2.5288]
[1674253579195,43.268053,25.328,25.262,17.2514913]
[1674253579196,29.63,25.32,25.262,17.2514913]
[1674253579502,20.0,25.319,25.263,14.7226913]
[1674253579716,29.63,25.318,25.264,2.5286]
[1674253579930,118.4,25.318,25.264,2.5286]
[1674253580145,53.38576951,25.317,25.264,2.5286]
[1674253580360,17.0,25.316,25.264,17.2512913]
[1674253580580,29.63,25.315,25.265,14.7226913]
[1674253580884,118.4,25.313,25.266,2.5284]
[1674253581084,36.5,25.314,25.261,113.0784]
[1674253581085,118.4,25.311,25.261,113.0784]
[1674253581293,118.4,25.309,25.261,113.0784]
[1674253581522,26.27265951,25.312,25.225,7.996]
[1674253581523,118.4,25.307,25.225,7.996]
[1674253581712,118.4,25.305,25.237,118.96891]
[1674253582046,118.4,25.303,25.238,2.53121]
[1674253582236,118.4,25.301,25.238,17.2539013]
[1674253582446,118.4,25.299,25.239,14.7226913]
[1674253582661,118.4,25.297,25.24,2.531]
[1674253582865,118.4,25.295,25.24,2.531]
[1674253583073,118.4,25.293,25.24,2.531]
[1674253583303,118.4,25.291,25.237,116.4376]
[1674253583496,118.4,25.289,25.237,116.4376]
[1674253583718,56.00919531,25.29,25.212,114.4253]
[1674253583719,118.4,25.287,25.212,114.4253]
[1674253583927,5.20335442,25.284,25.213,119.33912]
[1674253584139,70.14689,25.286,25.213,119.33912]
[1674253584140,118.4,25.282,25.214,2.53361]
[1674253584348,33.14689,25.283,25.214,2.53361]
[1674253584349,118.4,25.28,25.214,2.53361]
[1674253584567,5.32764219,25.277,25.213,116.8054]
[1674253584769,118.4,25.275,25.213,116.8054]
[1674253584973,118.4,25.273,25.214,2.53361]
[1674253585181,118.4,25.271,25.214,2.53361]
[1674253585508,118.4,25.269,25.214,31.9789926]
[1674253585725,118.4,25.267,25.215,20.0]
[1674253585915,46.69,25.268,25.215,20.0]
[1674253585916,29.69,25.266,25.216,2.53341]
[1674253586126,29.69,25.267,25.216,17.2561013]
[1674253586452,173.49521628,25.312,25.216,17.2561013]
[1674253586453,23.75576951,25.271,25.217,14.7226913]
[1674253586655,23.75576951,25.266,25.218,22.53321]
[1674253586866,29.69,25.265,25.219,2.53311]
[1674253587082,29.69,25.265,25.22,0.96]
[1674253587286,29.69,25.265,25.221,2.53291]
[1674253587287,118.4,25.263,25.221,2.53291]
[1674253587506,118.4,25.261,25.222,0.96]
[1674253587716,66.7,25.26,25.223,2.53271]
[1674253588040,73.45576951,25.26,25.224,0.96]
[1674253588228,49.7,25.26,25.225,2.53251]
[1674253588439,17.0,25.259,25.226,0.96]
[1674253588645,49.7,25.258,25.227,2.53231]
[1674253588853,73.45576951,25.258,25.227,2.53231]
[1674253589060,49.7,25.258,25.227,2.53231]
[1674253589820,23.75576951,25.257,25.227,2.53231]
[1674253590012,49.7,25.256,25.227,2.53231]
[1674253590453,40.75576951,25.255,25.227,2.53231]
[1674253590668,169.06,25.254,25.213,116.8054]
[1674253590874,29.7,25.254,25.215,2.53351]
[1674253591185,129.90990169,25.289,25.215,2.53351]
[1674253591186,118.4,25.276,25.215,2.53351]
[1674253591377,47.51153902,25.262,25.216,29.4453826]
[1674253591589,29.7,25.261,25.218,2.53321]
[1674253592003,23.75576951,25.267,25.219,15.6826913]
[1674253592235,29.69,25.266,25.221,2.53291]
[1674253592430,29.69,25.266,25.222,0.96]
[1674253592642,40.75576951,25.265,25.223,2.53271]
[1674253592848,29.69,25.264,25.224,0.96]
[1674253593053,17.0,25.263,25.225,2.53251]
[1674253593270,29.69,25.262,25.226,0.96]
[1674253593474,17.0,25.261,25.227,2.53231]
[1674253593686,49.7,25.26,25.228,0.96]
[1674253593906,17.96,25.259,25.229,2.53211]
[1674253594117,49.7,25.258,25.229,2.53211]
[1674253594342,17.96,25.257,25.229,2.53211]
[1674253594539,49.7,25.256,25.229,2.53211]
[1674253594753,17.96,25.255,25.229,2.53211]
[1674253594961,49.7,25.254,25.229,2.53211]
[1674253595173,17.96,25.253,25.229,2.53211]
[1674253595383,49.71,25.252,25.229,2.53211]
[1674253595596,17.96,25.251,25.229,2.53211]
[1674253595792,49.71,25.25,25.229,2.53211]
[1674253596206,20.0,25.25,25.229,2.53211]
[1674253596631,118.4,25.27,25.229,2.53211]
[1674253596854,23.75576951,25.252,25.229,2.53211]
[1674253597073,29.69,25.269,25.23,0.96]
[1674253597272,29.69,25.27,25.231,2.53191]
[1674253597482,47.51153902,25.273,25.232,0.96]
[1674253597678,23.75576951,25.269,25.233,2.53171]
[1674253597892,29.69,25.268,25.234,0.96]
[1674253598112,29.69,25.268,25.235,2.53151]
[1674253598331,23.75576951,25.271,25.235,2.53151]
[1674253598525,23.75576951,25.268,25.235,2.53151]
[1674253598737,49.69,25.267,25.235,2.53151]
[1674253599075,23.75576951,25.266,25.236,0.96]
[1674253599254,23.75576951,25.266,25.237,2.53131]
[1674253599255,49.69,25.265,25.237,2.53131]
[1674253599793,41.71576951,25.264,25.237,2.53131]
[1674253600005,49.69,25.263,25.237,2.53131]
[1674253600201,0.96,25.262,25.192,8.685]
[1674253600412,118.4,25.26,25.214,2.53361]
[1674253600637,118.4,25.258,25.214,2.53361]
[1674253600844,49.7,25.257,25.214,2.53361]
[1674253601166,20.0,25.256,25.214,2.53361]
[1674253601483,118.4,25.254,25.214,2.53361]
[1674253601674,49.71,25.253,25.214,2.53361]
[1674253602008,191.86576951,25.253,25.214,2.53361]
[1674253602202,41.71576951,25.252,25.214,2.53361]
[1674253602399,29.71,25.251,25.214,2.53361]
[1674253602614,37.96,25.25,25.214,2.53361]
[1674253602825,29.71,25.249,25.214,2.03361]
[1674253603029,118.4,25.247,25.214,2.03361]
[1674253603244,186.07,25.246,25.214,2.03361]
[1674253603476,73.46576951,25.246,25.214,2.03361]
[1674253603790,41.71576951,25.245,25.214,2.03361]
[1674253603983,118.4,25.243,25.214,2.03361]
[1674253604193,118.4,25.241,25.214,2.03361]
[1674253604400,168.12,25.24,25.214,2.03361]
[1674253604611,0.96,25.239,25.214,2.03361]
[1674253604826,29.72,25.238,25.214,2.03361]
[1674253605057,118.4,25.236,25.214,2.03361]
[1674253605371,209.84576951,25.235,25.214,2.03361]
[1674253605599,17.96,25.234,25.19,111.88]
[1674253605776,49.73,25.233,25.202,2.53482]
[1674253606181,118.4,25.232,25.202,2.53482]
[1674253606397,49.73,25.231,25.202,2.53482]
[1674253608119,17.96,25.23,25.202,2.53482]
[1674253608287,49.73,25.229,25.202,2.53482]
[1674253608495,17.96,25.228,25.202,2.53482]
[1674253608707,49.74,25.227,25.202,2.53482]
[1674253608933,0.96,25.226,25.202,2.53482]
[1674253609462,148.14,25.225,25.202,2.53482]
[1674253609670,0.96,25.224,25.202,2.53482]
[1674253609889,0.96,25.224,25.19,111.88]
[1674253609890,29.74,25.223,25.19,111.88]
[1674253610100,37.96,25.222,25.19,111.88]
[1674253610413,148.14,25.221,25.19,111.88]
[1674253610599,17.96,25.22,25.19,111.88]
[1674253610807,49.75,25.219,25.201,30.925053]
[1674253611146,73.50576951,25.219,25.201,30.925053]
[1674253611346,47.51153902,25.218,25.201,30.925053]
[1674253611550,29.75,25.217,25.201,30.925053]
[1674253611768,20.0,25.216,25.201,30.925053]
[1674253612089,29.75,25.215,25.201,30.925053]
[1674253612297,20.0,25.214,25.201,30.925053]
[1674253612713,114.26647008,25.26,25.201,30.925053]
[1674253612714,23.75576951,25.218,25.201,30.925053]
[1674253612923,20.0,25.217,25.201,30.925053]
[1674253613157,20.0,25.217,25.201,33.459973]
[1674253613648,53.50576951,25.216,25.201,30.925053]
[1674253613868,20.0,25.215,25.201,30.925053]
[1674253614079,43.75576951,25.215,25.201,30.925053]
[1674253614289,23.75576951,25.214,25.201,30.925053]
[1674253614488,20.0,25.213,25.201,30.925053]
[1674253614704,20.0,25.215,25.201,30.925053]
[1674253615024,29.72,25.238,25.201,30.925053]
[1674253615235,118.4,25.242,25.202,2.53482]
[1674253615439,23.75576951,25.238,25.203,0.96]
[1674253615664,29.72,25.237,25.204,2.53462]
[1674253615997,53.47576951,25.237,25.204,2.53462]
[1674253616520,53.47576951,25.237,25.204,19.53462]
[1674253616722,53.47576951,25.237,25.205,0.96]
[1674253617044,53.47576951,25.237,25.206,2.53442]
[1674253617356,29.72,25.237,25.207,0.96]
[1674253617573,20.0,25.236,25.208,2.53422]
[1674253617766,29.73,25.235,25.208,2.53422]
[1674253618096,23.75576951,25.238,25.209,0.96]
[1674253618284,20.0,25.237,25.21,2.53402]
[1674253618499,23.75576951,25.235,25.211,0.96]
[1674253618705,23.75576951,25.235,25.212,2.53382]
[1674253618922,23.75576951,25.235,25.213,0.96]
[1674253619129,29.71,25.247,25.214,2.53361]
[1674253619672,23.75576951,25.246,25.215,0.96]
[1674253619874,29.7,25.259,25.216,2.53341]
[1674253620076,29.68,25.271,25.217,10.024]
[1674253620297,23.75576951,25.264,25.219,2.53311]
[1674253620493,29.69,25.263,25.219,2.53311]
[1674253620711,29.69,25.263,25.22,60.95566978]
[1674253620933,23.75576951,25.262,25.222,2.53281]
[1674253621119,29.69,25.27,25.223,0.96]